bitfinex/quotes_BTCUSD_20240607
["timestamp","ask_amount","ask_price","bid_price","bid_amount"]
[1717781406484,0.142006,70420.0,70414.0,0.2895368]
[1717781407164,0.141987,70429.0,70424.0,0.09224374]
[1717781407382,0.620171,70437.0,70427.0,0.07222824]
[1717781407616,0.43336945,70435.0,70428.0,0.14441893]
[1717781407847,0.01063743,70439.0,70428.0,0.14441893]
[1717781407848,0.11839369,70439.0,70428.0,0.14441893]
[1717781408087,0.14198,70433.0,70428.0,0.14441893]
[1717781408318,0.01063743,70439.0,70428.0,0.18701462]
[1717781408476,0.01063743,70439.0,70428.0,0.14441893]
[1717781408706,0.10775626,70436.0,70428.0,0.14441893]
[1717781408910,0.10775626,70434.0,70428.0,0.16241893]
[1717781409117,0.141986,70430.0,70428.0,0.009]
[1717781409686,0.002,70435.0,70434.0,0.08936257]
[1717781409887,0.002,70435.0,70431.0,0.08936257]
[1717781410114,0.002,70435.0,70432.0,0.14441893]
[1717781410317,0.002,70435.0,70433.0,0.1]
[1717781410496,0.002,70435.0,70433.0,0.24441893]
[1717781410698,0.001,70435.0,70434.0,0.14441893]
[1717781410888,0.10775626,70443.0,70434.0,0.24441893]
[1717781411097,0.001,70439.0,70435.0,0.1]
[1717781411296,0.001,70439.0,70436.0,0.14441893]
[1717781411491,0.048462,70448.0,70436.0,0.18792145]
[1717781411735,0.048462,70448.0,70436.0,0.14441893]
[1717781412351,0.141958,70444.0,70436.0,0.14441893]
[1717781412555,0.001,70439.0,70436.0,0.15341893]
[1717781413986,0.001,70439.0,70436.0,0.16241893]
[1717781414391,0.001,70439.0,70436.0,0.14441893]
[1717781414612,0.141962,70441.0,70436.0,0.14441893]
[1717781414791,0.001,70439.0,70436.0,0.16241893]
[1717781415335,0.001,70439.0,70436.0,0.15341893]
[1717781415550,0.002,70439.0,70437.0,0.02534189]
[1717781415695,0.002,70439.0,70438.0,0.14441893]
[1717781415696,0.001,70439.0,70438.0,0.14441893]
[1717781415912,0.142966,70439.0,70438.0,0.14441893]
[1717781416112,0.001,70439.0,70438.0,0.14441893]
[1717781416321,0.001,70439.0,70436.0,0.018]
[1717781416487,0.001,70439.0,70437.0,0.14738755]
[1717781416488,0.31318626,70438.0,70437.0,0.14738755]
[1717781416679,0.31318826,70437.0,70436.0,0.018]
[1717781417054,1.81318826,70437.0,70436.0,0.018]
[1717781417255,1.690432,70437.0,70436.0,0.018]
[1717781417458,1.81318826,70437.0,70436.0,0.009]
[1717781417656,0.141981,70432.0,70423.0,0.08936257]
[1717781417793,0.141981,70432.0,70424.0,0.29183122]
[1717781418221,0.141981,70432.0,70425.0,0.24741229]
[1717781418410,0.141981,70432.0,70426.0,0.14741229]
[1717781418589,0.141981,70432.0,70425.0,0.24441893]
[1717781418822,0.141981,70432.0,70426.0,0.14741039]
[1717781418938,0.048462,70436.0,70429.0,0.236]
[1717781418939,0.141973,70436.0,70429.0,0.236]
[1717781419138,0.141974,70435.0,70430.0,0.14441893]
[1717781419350,0.142981,70432.0,70430.0,0.14441893]
[1717781419539,0.001,70432.0,70430.0,0.14441893]
[1717781420651,0.142981,70432.0,70430.0,0.14441893]
[1717781421068,0.143981,70432.0,70430.0,0.14441893]
[1717781421285,0.141981,70432.0,70430.0,0.14441893]
[1717781421541,0.001,70432.0,70430.0,0.14441893]
[1717781421844,0.002,70432.0,70430.0,0.15341893]
[1717781422060,0.002,70432.0,70431.0,0.25857477]
[1717781422061,0.001,70432.0,70431.0,0.25857477]
[1717781422264,0.048462,70458.0,70439.0,0.14090057]
[1717781422476,0.05909943,70458.0,70441.0,0.07222824]
[1717781422648,0.12275626,70454.0,70442.0,0.29182357]
[1717781422852,0.10775626,70456.0,70443.0,0.30067705]
[1717781423014,0.015,70457.0,70444.0,0.14441893]
[1717781423015,0.10775626,70457.0,70444.0,0.14441893]
[1717781423246,0.07409943,70458.0,70445.0,0.14740464]
[1717781423247,0.10775626,70455.0,70445.0,0.14740464]
[1717781423456,0.015,70456.0,70446.0,0.29182357]
[1717781423457,0.10775626,70456.0,70446.0,0.29182357]
[1717781423717,0.10775626,70456.0,70447.0,0.14740464]
[1717781423917,0.141941,70452.0,70448.0,0.14740464]
[1717781424120,0.141941,70452.0,70449.0,0.14740464]
[1717781424325,0.141941,70452.0,70447.0,0.14441893]
[1717781424568,0.141941,70452.0,70448.0,0.14737224]
[1717781424796,0.17263743,70465.0,70448.0,0.14737224]
[1717781424797,0.141933,70456.0,70449.0,0.14737224]
[1717781425000,0.141933,70456.0,70451.0,0.1542]
[1717781425169,0.141925,70460.0,70452.0,0.14737224]
[1717781425370,0.141925,70460.0,70451.0,0.1542]
[1717781425371,0.141925,70460.0,70453.0,0.14737224]
[1717781425569,0.048462,70461.0,70451.0,0.1542]
[1717781425570,0.141927,70459.0,70454.0,0.14737224]
[1717781425778,0.141927,70459.0,70455.0,0.14737224]
[1717781425956,0.141927,70459.0,70456.0,0.14737224]
[1717781426152,0.141927,70459.0,70452.0,0.0786]
[1717781426361,0.141927,70459.0,70452.0,0.22301893]
[1717781426570,0.141927,70459.0,70453.0,0.14735384]
[1717781426766,0.141927,70459.0,70454.0,0.14735384]
[1717781426997,0.141928,70458.0,70455.0,0.14735384]
[1717781427311,0.141928,70458.0,70452.0,0.22301893]
[1717781427449,0.141928,70458.0,70453.0,0.14735425]
[1717781427644,0.141928,70458.0,70454.0,0.14735425]
[1717781427850,0.141928,70458.0,70455.0,0.14735425]
[1717781428223,0.141928,70458.0,70455.0,0.008]
[1717781428424,0.141928,70458.0,70455.0,0.017]
[1717781428425,0.142928,70458.0,70455.0,0.017]
[1717781428614,0.142928,70458.0,70453.0,0.009]
[1717781428615,0.141928,70458.0,70452.0,0.22301893]
[1717781428833,0.141928,70458.0,70453.0,0.14735457]
[1717781428973,0.141928,70458.0,70455.0,0.008]
[1717781429423,0.10775626,70457.0,70455.0,0.008]
[1717781429618,0.141928,70458.0,70452.0,0.22301893]
[1717781429855,0.24968426,70458.0,70453.0,0.14735457]
[1717781430057,0.141928,70458.0,70454.0,0.14735457]
[1717781430209,0.141928,70458.0,70452.0,0.23101893]
[1717781430563,0.10775626,70455.0,70453.0,0.14735456]
[1717781430798,0.17121826,70453.0,70452.0,0.008]
[1717781430999,0.1904,70453.0,70452.0,0.008]
[1717781431226,0.141945,70450.0,70443.0,0.1]
[1717781431424,0.141945,70450.0,70445.0,5.14511787]
[1717781431727,0.141952,70446.0,70445.0,5.0]
[1717781432290,0.141952,70446.0,70445.0,5.15537458]
[1717781433019,0.141952,70446.0,70445.0,5.14737458]
[1717781433262,0.141952,70446.0,70445.0,5.15637458]
[1717781433434,0.141952,70446.0,70445.0,5.30949245]
[1717781434416,0.141952,70446.0,70445.0,5.30049245]
[1717781434707,0.141952,70446.0,70445.0,5.29249245]
[1717781435131,0.141952,70446.0,70445.0,5.30049245]
[1717781435289,0.141952,70446.0,70445.0,5.30949245]
[1717781435290,0.001,70446.0,70445.0,5.30949245]
[1717781435674,0.001,70446.0,70445.0,5.15637458]
[1717781435996,0.002,70446.0,70445.0,5.16537458]
[1717781436196,0.002,70446.0,70445.0,5.17337458]
[1717781436400,0.001,70446.0,70445.0,5.29979351]
[1717781436626,0.001,70446.0,70445.0,5.29179351]
[1717781436828,0.001,70446.0,70445.0,5.43691138]
[1717781437258,0.001,70446.0,70445.0,5.29179351]
[1717781437800,0.002,70446.0,70445.0,5.30079351]
[1717781438339,0.002,70446.0,70445.0,5.30879351]
[1717781438913,0.002,70446.0,70445.0,5.40103725]
[1717781439127,0.002,70446.0,70445.0,5.30879351]
[1717781439339,0.002,70446.0,70445.0,5.45391138]
[1717781439882,0.002,70446.0,70445.0,5.54615512]
[1717781440747,0.002,70446.0,70445.0,5.40103725]
[1717781441182,0.002,70446.0,70445.0,5.78389182]
[1717781441615,0.002,70446.0,70445.0,6.00489865]
[1717781442473,0.001,70446.0,70445.0,6.00489865]
[1717781442675,0.000946,70456.0,70454.0,0.2345]
[1717781443012,0.000946,70456.0,70455.0,0.43605932]
[1717781443223,0.000946,70456.0,70455.0,0.53605932]
[1717781443874,0.000946,70456.0,70455.0,0.81889389]
[1717781444077,0.000946,70456.0,70455.0,1.05339389]
[1717781444284,0.000946,70456.0,70455.0,1.29570254]
[1717781444486,0.000946,70456.0,70455.0,1.27438706]
[1717781445052,0.000946,70456.0,70455.0,1.55825606]
[1717781445822,0.000946,70456.0,70455.0,1.56525606]
[1717781446708,0.000946,70456.0,70455.0,1.55825606]
[1717781447862,0.000946,70456.0,70455.0,1.56525606]
[1717781448079,0.000946,70456.0,70455.0,1.57225606]
[1717781451606,0.000946,70456.0,70455.0,1.28838706]
[1717781451849,0.000946,70456.0,70455.0,1.44288706]
[1717781452062,0.000946,70456.0,70455.0,1.72675606]
[1717781452516,0.000946,70456.0,70455.0,2.01062506]
[1717781452736,0.000946,70456.0,70455.0,2.01053581]
[1717781452953,0.000946,70456.0,70455.0,2.02768808]
[1717781453390,0.000946,70456.0,70455.0,2.03336708]
[1717781456849,0.000946,70456.0,70455.0,2.03334306]
[1717781457252,0.141864,70490.0,70489.0,0.1]
[1717781457478,0.141864,70490.0,70489.0,0.11]
[1717781459401,0.141864,70490.0,70489.0,0.121]
[1717781460176,0.294564,70490.0,70489.0,0.11]
[1717781461498,0.141858,70493.0,70492.0,0.11]
[1717781461737,0.1541,70494.0,70492.0,0.11]
[1717781461998,0.1541,70494.0,70483.0,0.1637]
[1717781461999,0.299452,70496.0,70495.0,0.11]
[1717781462220,0.1576,70496.0,70495.0,0.11]
[1717781462472,0.141851,70497.0,70496.0,0.11]
[1717781463293,0.141851,70497.0,70496.0,0.25728423]
[1717781463907,0.141851,70497.0,70496.0,0.24728423]
[1717781464092,0.141851,70497.0,70496.0,0.25728423]
[1717781465143,0.141851,70497.0,70496.0,0.2572848]
[1717781465359,0.1576,70499.0,70498.0,0.11]
[1717781465575,0.222831,70506.0,70505.0,0.01]
[1717781465785,0.222831,70506.0,70505.0,0.11]
[1717781465994,0.23945911,70506.0,70505.0,0.11]
[1717781466221,0.15845911,70506.0,70505.0,0.25727058]
[1717781466425,0.1508,70507.0,70506.0,0.1]
[1717781466626,0.1508,70507.0,70506.0,0.25727058]
[1717781466837,0.17409301,70510.0,70509.0,0.11]
[1717781467043,0.17409301,70510.0,70509.0,0.25727058]
[1717781467255,0.17409301,70510.0,70509.0,0.28299764]
[1717781467256,0.00949301,70510.0,70509.0,0.28299764]
[1717781467733,0.00949301,70510.0,70509.0,0.25727058]
[1717781469178,0.00949301,70510.0,70509.0,0.24727058]
[1717781469599,0.00949301,70510.0,70509.0,0.26227058]
[1717781469827,0.00949301,70510.0,70509.0,0.26627058]
[1717781470265,0.00949301,70510.0,70509.0,0.25727058]
[1717781471909,0.00949301,70510.0,70509.0,0.26027058]
[1717781472121,0.00949301,70510.0,70509.0,0.26327058]
[1717781472338,0.00949301,70510.0,70509.0,0.26027058]
[1717781472671,0.00949301,70510.0,70509.0,0.26427058]
[1717781472926,0.00949301,70510.0,70509.0,0.29982849]
[1717781473578,0.00949301,70510.0,70509.0,0.44424742]
[1717781473817,0.00949301,70510.0,70509.0,0.67211878]
[1717781474050,0.00949301,70510.0,70509.0,0.52769985]
[1717781474271,0.16131601,70510.0,70509.0,0.48914194]
[1717781474506,0.30573494,70510.0,70509.0,0.16827058]
[1717781474741,2.08938194,70510.0,70509.0,0.16827058]
[1717781474965,2.08938194,70510.0,70509.0,0.021]
[1717781475458,2.08938194,70510.0,70505.0,0.1]
[1717781475459,0.01,70506.0,70505.0,0.1]
[1717781475669,0.01,70506.0,70490.0,0.10353326]
[1717781475670,0.141845,70499.0,70498.0,0.1]
[1717781475887,0.141845,70499.0,70498.0,0.24729296]
[1717781476097,0.425536,70499.0,70498.0,0.24729296]
[1717781476300,1.641845,70499.0,70498.0,0.24729296]
[1717781476517,1.801945,70499.0,70498.0,0.24729296]
[1717781476744,1.811945,70499.0,70498.0,0.24729296]
[1717781476963,1.801945,70499.0,70498.0,0.24729296]
[1717781477175,1.879145,70499.0,70498.0,0.24729296]
[1717781478004,1.889145,70499.0,70498.0,0.24729296]
[1717781478793,1.889145,70499.0,70498.0,0.1]
[1717781479434,2.172836,70499.0,70498.0,0.1]
[1717781479826,2.31725493,70499.0,70498.0,0.1]
[1717781480071,2.31965493,70499.0,70498.0,0.1]
[1717781480630,2.31965493,70499.0,70497.0,0.1]
[1717781480631,0.435542,70498.0,70497.0,0.1]
[1717781481280,0.141847,70498.0,70497.0,0.1]
[1717781481487,0.380347,70498.0,70497.0,0.1]
[1717781481686,0.674042,70498.0,70497.0,0.1]
[1717781481907,0.664042,70498.0,70497.0,0.1]
[1717781483796,0.664042,70498.0,70497.0,0.101]
[1717781484010,0.664042,70498.0,70497.0,0.102]
[1717781484409,0.380347,70498.0,70497.0,0.102]
[1717781485211,0.674042,70498.0,70497.0,0.102]
[1717781485964,0.674042,70498.0,70497.0,0.101]
[1717781486139,0.674042,70498.0,70497.0,0.102]
[1717781486314,0.674042,70498.0,70497.0,0.101]
[1717781486519,0.674042,70498.0,70497.0,0.1]
[1717781487296,0.664042,70498.0,70497.0,0.1]
[1717781488357,0.390347,70498.0,70497.0,0.1]
[1717781488605,0.664042,70498.0,70497.0,0.1]
[1717781489681,0.425542,70498.0,70497.0,0.1]
[1717781489881,0.425542,70498.0,70497.0,0.11]
[1717781489882,0.141847,70498.0,70497.0,0.11]
[1717781490023,0.141847,70498.0,70497.0,0.1]
[1717781490228,0.141847,70498.0,70497.0,0.102]
[1717781490449,0.141847,70498.0,70497.0,0.112]
[1717781490657,0.141847,70498.0,70497.0,0.11]
[1717781493321,0.141847,70498.0,70497.0,0.2796]
[1717781493525,0.141847,70498.0,70497.0,0.2676]
[1717781494093,0.141828,70508.0,70507.0,0.01]
[1717781494325,0.11479226,70509.0,70506.0,0.11]
[1717781494326,0.141829,70507.0,70506.0,0.11]
[1717781495989,0.136829,70507.0,70506.0,0.11]
[1717781496191,0.136829,70507.0,70506.0,0.121]
[1717781496674,0.136829,70507.0,70506.0,0.11]
[1717781497485,0.131829,70507.0,70506.0,0.11]
[1717781498122,0.01,70509.0,70508.0,0.11]
[1717781499563,0.01,70509.0,70508.0,0.1902]
[1717781501995,0.01,70509.0,70508.0,0.2002]
[1717781502140,0.01,70509.0,70508.0,0.22142]
[1717781502349,0.01,70509.0,70508.0,0.1902]
[1717781502750,0.01,70509.0,70508.0,0.1972]
[1717781503234,0.01,70509.0,70508.0,0.125]
[1717781503745,0.01,70509.0,70508.0,0.107]
[1717781503746,0.010946,70509.0,70508.0,0.107]
[1717781504167,0.010946,70509.0,70508.0,0.114]
[1717781504602,0.010946,70509.0,70508.0,0.121]
[1717781505144,0.010946,70509.0,70508.0,0.131]
[1717781505348,0.010946,70509.0,70508.0,0.121]
[1717781505558,0.010946,70509.0,70508.0,0.131]
[1717781505970,0.010946,70509.0,70508.0,0.1441]
[1717781506376,0.010946,70509.0,70508.0,0.3837]
[1717781506837,0.010946,70509.0,70508.0,0.131]
[1717781508488,0.010946,70509.0,70508.0,0.27541893]
[1717781508711,0.010946,70509.0,70508.0,0.28541893]
[1717781508937,0.010946,70509.0,70508.0,0.27541893]
[1717781509143,0.010946,70509.0,70508.0,0.28541893]
[1717781509379,0.010946,70509.0,70508.0,0.35339452]
[1717781509576,0.008827,70509.0,70508.0,0.35339452]
[1717781510219,0.008827,70509.0,70508.0,0.29541893]
[1717781510659,0.008827,70509.0,70508.0,0.28541893]
[1717781511741,0.008827,70509.0,70508.0,0.29541893]
[1717781511957,0.008827,70509.0,70508.0,0.53651893]
[1717781511958,0.003827,70509.0,70508.0,0.53651893]
[1717781513746,0.003827,70509.0,70508.0,0.67834593]
[1717781513893,0.003827,70509.0,70508.0,0.93063571]
[1717781514099,0.003827,70509.0,70508.0,1.33063571]
[1717781515534,0.003827,70509.0,70508.0,1.30963571]
[1717781515998,0.003827,70509.0,70508.0,1.32463571]
[1717781516199,0.003827,70509.0,70508.0,1.31763571]
[1717781516821,0.003827,70509.0,70508.0,1.30963571]
[1717781517011,0.003827,70509.0,70508.0,1.31763571]
[1717781517935,0.003827,70509.0,70508.0,1.32463571]
[1717781518335,0.003827,70509.0,70508.0,1.31763571]
[1717781518761,0.003827,70509.0,70508.0,1.32463571]
[1717781519169,0.003827,70509.0,70508.0,1.12463571]
[1717781519378,0.003827,70509.0,70508.0,1.00663571]
[1717781519592,0.003827,70509.0,70508.0,0.99963571]
[1717781519803,0.003827,70509.0,70508.0,0.86040335]
[1717781519997,0.003827,70509.0,70508.0,0.87040335]
[1717781520224,0.003827,70509.0,70508.0,0.86240335]
[1717781520425,0.003827,70509.0,70508.0,1.00963283]
[1717781520888,0.003827,70509.0,70508.0,1.01763283]
[1717781521899,0.003827,70509.0,70508.0,1.02463283]
[1717781522978,0.003827,70509.0,70508.0,1.22463283]
[1717781523393,0.003827,70509.0,70508.0,1.76278783]
[1717781523593,0.009482,70514.0,70513.0,0.651317]
[1717781523766,0.009482,70514.0,70513.0,1.19746541]
[1717781523969,0.009482,70514.0,70513.0,1.48110041]
[1717781524176,0.00333924,70515.0,70514.0,1.095146]
[1717781524381,0.00333924,70515.0,70514.0,1.91554328]
[1717781524589,0.00782124,70517.0,70516.0,1.095934]
[1717781524793,0.00782124,70517.0,70516.0,1.48758241]
[1717781525847,0.00782124,70517.0,70516.0,1.87120541]
[1717781526018,0.00782124,70517.0,70516.0,2.02570541]
[1717781526262,0.00782124,70517.0,70516.0,2.01632328]
[1717781526433,0.00782124,70517.0,70516.0,2.25842339]
[1717781526633,0.00782124,70517.0,70516.0,2.24412082]
[1717781526873,0.00782124,70517.0,70516.0,2.25212082]
[1717781527503,0.00782124,70517.0,70516.0,2.39962082]
[1717781527907,0.00782124,70517.0,70516.0,2.39162082]
[1717781528649,0.00782124,70517.0,70516.0,2.23712082]
[1717781529242,0.00782124,70517.0,70516.0,2.24412082]
[1717781529871,0.00782124,70517.0,70516.0,2.25212082]
[1717781530127,0.00782124,70517.0,70516.0,2.25205907]
[1717781530979,0.00782124,70517.0,70516.0,1.8840938]
[1717781531176,0.00782124,70517.0,70516.0,2.25205907]
[1717781531382,0.00782124,70517.0,70516.0,1.30793607]
[1717781531693,0.00282124,70517.0,70516.0,0.66841604]
[1717781532278,0.00282124,70517.0,70516.0,0.66041604]
[1717781532490,0.00282124,70517.0,70516.0,0.67041604]
[1717781532693,0.00282124,70517.0,70516.0,0.67141604]
[1717781532888,0.00282124,70517.0,70516.0,0.82353391]
[1717781533157,0.00282124,70517.0,70516.0,1.40715691]
[1717781533321,0.00282124,70517.0,70516.0,1.55465691]
[1717781533518,0.00282124,70517.0,70516.0,1.56165691]
[1717781533767,0.00730324,70524.0,70523.0,0.271797]
[1717781533949,0.00730324,70524.0,70523.0,0.72058174]
[1717781534529,0.00730324,70524.0,70523.0,1.54337674]
[1717781535161,0.00730324,70524.0,70523.0,1.34337674]
[1717781535335,0.00730324,70524.0,70523.0,1.05978174]
[1717781535914,0.00730324,70524.0,70523.0,1.06778174]
[1717781536142,0.00730324,70524.0,70523.0,1.55937674]
[1717781536346,0.00730324,70524.0,70523.0,1.84297174]
[1717781536547,0.00730324,70524.0,70523.0,1.83497174]
[1717781536752,0.00730324,70524.0,70523.0,1.54337674]
[1717781537028,0.00730324,70524.0,70523.0,1.55137674]
[1717781537169,0.00730324,70524.0,70523.0,1.80144332]
[1717781537895,0.00730324,70524.0,70523.0,1.80143612]
[1717781538278,0.00730324,70524.0,70523.0,1.40419063]
[1717781538476,0.00730324,70524.0,70523.0,1.76413733]
[1717781538695,0.00730324,70524.0,70523.0,1.77213733]
[1717781538894,0.00730324,70524.0,70523.0,1.77913733]
[1717781539092,0.00730324,70524.0,70523.0,1.77113733]
[1717781539299,0.00730324,70524.0,70523.0,1.76413733]
[1717781539592,0.00730324,70524.0,70523.0,1.77913733]
[1717781540027,0.00730324,70524.0,70523.0,2.06273233]
[1717781540203,0.00730324,70524.0,70523.0,1.77913733]
[1717781541433,0.00730324,70524.0,70523.0,1.56913733]
[1717781541814,0.1574,70546.0,70545.0,0.1]
[1717781543396,0.1574,70546.0,70545.0,0.104]
[1717781543598,0.1574,70546.0,70545.0,0.107]
[1717781543827,0.299151,70546.0,70545.0,0.107]
[1717781544030,0.384551,70546.0,70545.0,0.107]
[1717781544236,0.384551,70546.0,70545.0,0.007]
[1717781544237,0.668053,70546.0,70545.0,0.007]
[1717781544450,0.668053,70546.0,70531.0,0.4782]
[1717781544451,0.151767,70538.0,70537.0,0.1]
[1717781544647,0.301883,70530.0,70529.0,0.1]
[1717781544827,0.383283,70530.0,70529.0,0.1]
[1717781545108,1.868283,70530.0,70529.0,0.1]
[1717781545341,0.378283,70530.0,70529.0,0.1]
[1717781546317,0.378283,70530.0,70529.0,0.105]
[1717781546524,0.368283,70530.0,70529.0,0.105]
[1717781546727,0.368283,70530.0,70529.0,0.112]
[1717781546942,0.368283,70530.0,70529.0,0.1]
[1717781547147,0.2,70550.0,70536.0,0.1]
[1717781547148,0.1664,70543.0,70536.0,0.1]
[1717781547355,0.248,70538.0,70536.0,0.1]
[1717781547563,0.82772693,70537.0,70536.0,0.1]
[1717781547783,0.82772693,70537.0,70529.0,0.002]
[1717781547784,0.399777,70533.0,70532.0,0.1]
[1717781548705,0.389777,70533.0,70532.0,0.1]
[1717781549612,0.390777,70533.0,70532.0,0.1]
[1717781549830,0.394777,70533.0,70532.0,0.1]
[1717781550303,0.391777,70533.0,70532.0,0.1]
[1717781550943,0.395777,70533.0,70532.0,0.1]
[1717781551343,0.395777,70533.0,70532.0,0.11]
[1717781551595,0.395777,70533.0,70532.0,0.1]
[1717781552016,0.389777,70533.0,70532.0,0.11]
[1717781552444,0.389777,70533.0,70532.0,0.106]
[1717781552854,0.389777,70533.0,70532.0,0.103]
[1717781553851,0.389777,70533.0,70532.0,0.102]
[1717781554062,0.389777,70533.0,70532.0,0.112]
[1717781554275,0.389777,70533.0,70532.0,0.102]
[1717781555296,0.389777,70533.0,70532.0,0.11]
[1717781555735,0.389777,70533.0,70532.0,0.111]
[1717781556329,0.141777,70533.0,70532.0,0.11]
[1717781557715,0.141777,70533.0,70532.0,0.1]
[1717781558476,0.141777,70533.0,70532.0,0.11]
[1717781558688,0.141777,70533.0,70532.0,0.1]
[1717781559513,0.141777,70533.0,70532.0,0.11]
[1717781560323,0.141777,70533.0,70532.0,0.1]
[1717781560773,0.141777,70533.0,70532.0,0.11]
[1717781561406,0.283502,70546.0,70523.0,0.01]
[1717781561407,0.141768,70538.0,70537.0,0.11]
[1717781562163,0.1631,70540.0,70539.0,0.11]
[1717781563655,0.141761,70542.0,70541.0,0.01]
[1717781563904,0.0755,70544.0,70543.0,0.11]
[1717781564073,0.141754,70545.0,70543.0,0.11]
[1717781564319,0.141754,70545.0,70544.0,0.11]
[1717781565904,0.141754,70545.0,70544.0,0.101]
[1717781566736,0.393554,70545.0,70544.0,0.101]
[1717781566939,0.40973712,70545.0,70544.0,0.102]
[1717781567082,0.387554,70545.0,70544.0,0.102]
[1717781567482,0.383554,70545.0,70544.0,0.101]
[1717781568109,0.383554,70545.0,70544.0,0.1]
[1717781568623,0.383554,70545.0,70544.0,0.01]
[1717781568829,0.383554,70545.0,70544.0,0.11]
[1717781569802,0.385554,70545.0,70544.0,0.11]
[1717781570208,0.002,70545.0,70544.0,0.25441893]
[1717781570611,0.307353,70545.0,70544.0,0.1]
[1717781570820,0.384553,70545.0,70544.0,0.1]
[1717781571966,0.394553,70545.0,70544.0,0.1]
[1717781572136,0.384553,70545.0,70544.0,0.1]
[1717781573790,0.143753,70545.0,70544.0,0.1]
[1717781574233,0.143753,70545.0,70544.0,0.11]
[1717781574444,0.002,70545.0,70544.0,0.11]
[1717781574859,0.143753,70545.0,70544.0,0.11]
[1717781576143,0.386453,70545.0,70544.0,0.1]
[1717781577349,0.4926872,70545.0,70544.0,0.1]
[1717781579033,0.70214227,70545.0,70544.0,0.1]
[1717781579648,0.70214227,70545.0,70541.0,0.1]
[1717781579649,0.435278,70542.0,70541.0,0.1]
[1717781580067,0.56252899,70542.0,70541.0,0.1]
[1717781580299,0.56252899,70542.0,70538.0,0.1]
[1717781580300,0.151765,70539.0,70538.0,0.1]
[1717781580505,0.16394827,70539.0,70538.0,0.1]
[1717781581279,0.141767,70538.0,70537.0,0.1]
[1717781581492,0.141767,70538.0,70523.0,0.5782]
[1717781581493,0.151769,70537.0,70536.0,0.1]
[1717781581780,0.45749127,70537.0,70536.0,0.1]
[1717781582834,0.56255899,70537.0,70536.0,0.1]
[1717781583031,0.56255899,70537.0,70536.0,0.104]
[1717781583215,0.56255899,70537.0,70536.0,0.1]
[1717781583434,0.56255899,70537.0,70536.0,0.102]
[1717781583435,0.55255899,70537.0,70536.0,0.102]
[1717781583804,0.44749127,70537.0,70536.0,0.102]
[1717781583998,0.45749127,70537.0,70536.0,0.102]
[1717781584202,0.44749127,70537.0,70536.0,0.102]
[1717781584526,0.45749127,70537.0,70536.0,0.102]
[1717781584683,0.45749127,70537.0,70536.0,0.1]
[1717781585088,0.44749127,70537.0,70536.0,0.101]
[1717781585489,0.44749127,70537.0,70536.0,0.1]
[1717781586142,0.45749127,70537.0,70536.0,0.1]
[1717781587373,0.45749127,70537.0,70529.0,0.1]
[1717781587374,0.293559,70532.0,70529.0,0.1]
[1717781587634,0.141781,70531.0,70530.0,0.1]
[1717781588568,0.141781,70531.0,70530.0,0.11]
[1717781588795,0.141781,70531.0,70530.0,0.1]
[1717781589024,0.141781,70531.0,70530.0,0.11]
[1717781589307,0.141781,70531.0,70530.0,0.1]
[1717781589530,0.141781,70531.0,70530.0,0.117]
[1717781589963,0.141781,70531.0,70530.0,0.107]
[1717781590447,0.141781,70531.0,70530.0,0.114]
[1717781593105,0.151781,70531.0,70530.0,0.114]
[1717781593316,0.141781,70531.0,70530.0,0.114]
[1717781593480,0.151781,70531.0,70530.0,0.114]
[1717781593835,0.141781,70531.0,70530.0,0.114]
[1717781596942,0.151781,70531.0,70530.0,0.114]
[1717781597139,1.10532593,70531.0,70530.0,0.014]
[1717781597342,1.28201379,70531.0,70530.0,0.014]
[1717781597804,2.79890284,70531.0,70530.0,0.014]
[1717781598482,2.79890284,70531.0,70530.0,0.007]
[1717781598707,2.79890284,70531.0,70530.0,0.014]
[1717781598708,2.99890284,70531.0,70530.0,0.014]
[1717781598900,2.79890284,70531.0,70530.0,0.014]
[1717781599194,2.64440284,70531.0,70530.0,0.007]
[1717781599814,0.435374,70526.0,70525.0,0.1]
[1717781600018,0.60198079,70526.0,70525.0,0.1]
[1717781600335,0.43538,70525.0,70524.0,0.1]
[1717781600485,0.45756786,70525.0,70524.0,0.1]
[1717781601462,0.45728444,70525.0,70524.0,0.1]
[1717781602269,0.44828444,70525.0,70524.0,0.107]
[1717781602474,0.16469744,70525.0,70524.0,0.107]
[1717781602878,0.14250958,70525.0,70524.0,0.107]
[1717781603010,0.42609658,70525.0,70524.0,0.114]
[1717781603650,0.14250958,70525.0,70524.0,0.114]
[1717781604457,0.42609658,70525.0,70524.0,0.114]
[1717781605939,1.33501551,70525.0,70524.0,0.014]
[1717781606143,2.25727985,70525.0,70524.0,0.014]
[1717781606557,3.75727985,70525.0,70524.0,0.014]
[1717781606972,3.40277985,70525.0,70524.0,0.014]
[1717781607174,3.75727985,70525.0,70524.0,0.014]
[1717781607381,3.88299558,70525.0,70524.0,0.014]
[1717781608300,3.75727985,70525.0,70524.0,0.014]
[1717781608739,3.68299558,70525.0,70524.0,0.014]
[1717781608940,3.75727985,70525.0,70524.0,0.014]
[1717781609139,3.81405685,70525.0,70524.0,0.014]
[1717781609767,4.10499415,70525.0,70524.0,0.014]
[1717781615525,4.10499415,70525.0,70516.0,0.00086]
[1717781615526,1.948866,70517.0,70516.0,0.00086]
[1717781615740,2.26997527,70517.0,70516.0,0.00086]
[1717781615944,2.36997527,70517.0,70516.0,0.00086]
[1717781616091,2.38593524,70517.0,70516.0,0.00086]
[1717781616295,3.86997527,70517.0,70516.0,0.00086]
[1717781616698,3.86997527,70517.0,70516.0,0.00886]